lending/lending_fUSD_20250501
["ID","MTS","AMOUNT","RATE_DAILY","PERIOD"]
[359528999,1746094246689,-152.11618671,0.00041871,120]
[359529001,1746094246698,-152.11618671,0.00041871,120]
[359529003,1746094246708,-152.11618671,0.00041871,120]
[359529005,1746094246718,-164.53574376,0.00041871,120]
[359529007,1746094246728,-164.53574376,0.00041871,120]
[359529009,1746094246737,-164.53574376,0.00041871,120]
[359529011,1746094246747,-164.53574376,0.00041871,120]
[359529013,1746094246756,-164.53,0.00041871,120]
[359529015,1746094246766,-159.96530643,0.00041871,120]
[359529017,1746094246775,-159.96530643,0.00041871,120]
[359529019,1746094246784,-159.96530643,0.00041871,120]
[359529021,1746094246793,-159.96530643,0.00041871,120]
[359529024,1746094246804,-159.96530643,0.00041871,120]
[359529025,1746094246813,-159.96530643,0.00041871,120]
[359529027,1746094246822,-159.96530643,0.00041871,120]
[359529029,1746094246832,-150.0,0.00041877,2]
[359529031,1746094246842,-299.43261,0.00041888,30]
[359529033,1746094246851,-150.0,0.0004189,2]
[359529035,1746094246860,-150.0,0.00041896,2]
[359529037,1746094246870,-150.0,0.00041896,2]
[359529039,1746094246879,-1518.96239146,0.000419,15]
[359529041,1746094246888,-150.0,0.00041904,2]
[359529043,1746094246897,-153.33264661,0.00041905,28]
[359529045,1746094246907,-154.48,0.00041906,30]
[359529047,1746094246916,-150.0,0.00041906,30]
[359529049,1746094246926,-150.0,0.00041906,30]
[359529051,1746094246936,-150.0,0.00041906,30]
[359529053,1746094246945,-150.0,0.00041906,30]
[359529055,1746094246954,-150.0,0.00041906,30]
[359529057,1746094246964,-150.0,0.00041906,30]
[359529059,1746094246974,-150.0,0.00041944,2]
[359529060,1746094246984,-168.611437,0.0004195,60]
[359529061,1746094246994,-168.611437,0.0004195,30]
[359529062,1746094247003,-150.0,0.00041955,2]
[359529063,1746094247012,-8653.8756248,0.00041971,2]
[359529064,1746094247021,-150.0,0.00041971,2]
[359529065,1746094247031,-112063.799789,0.00041971,2]
[359529066,1746094247040,-6185.0412994,0.00041971,2]
[359529067,1746094247050,-117309.7397537,0.00041971,2]
[359529068,1746094247059,-50000.0,0.00042,32]
[359529069,1746094247069,-89393.40059518,0.00042,2]
[359529070,1746094247080,-292051.09825669,0.00042,5]
[359529071,1746094247091,-500.0,0.00042,30]
[359529072,1746094247100,-151.0,0.00042,14]
[359529073,1746094247109,-164.189359,0.00042,14]
[359529075,1746094247119,-151.0,0.00042,14]
[359529077,1746094247129,-161.827892,0.00042,14]
[359529079,1746094247138,-1069.432443,0.00042,14]
[359529081,1746094247147,-1069.432443,0.00042,14]
[359529083,1746094247156,-151.985422,0.00042,14]
[359529085,1746094247165,-151.0,0.00042,14]
[359529087,1746094247177,-151.0,0.00042,14]
[359529089,1746094247188,-210.723357,0.00042,14]
[359529091,1746094247197,-804.889713,0.00042,14]
[359529093,1746094247206,-804.889713,0.00042,14]
[359529095,1746094247218,-151.0,0.00042,14]
[359529097,1746094247227,-151.0,0.00042,14]
[359529099,1746094247237,-151.0,0.00042,14]
[359529101,1746094247246,-151.0,0.00042,14]
[359529103,1746094247256,-151.0,0.00042,14]
[359529105,1746094247266,-286.797337,0.00042,14]
[359529107,1746094247277,-286.797337,0.00042,14]
[359529109,1746094247286,-163.257342,0.00042,14]
[359529111,1746094247295,-151.0,0.00042,14]
[359529113,1746094247304,-151.0,0.00042,14]
[359529115,1746094247313,-151.0,0.00042,14]
[359529117,1746094247323,-151.0,0.00042,14]
[359529119,1746094247332,-151.0,0.00042,14]
[359529121,1746094247341,-151.0,0.00042,14]
[359529123,1746094247351,-151.0,0.00042,14]
[359529125,1746094247360,-296.478012,0.00042,14]
[359529127,1746094247369,-285.754276,0.00042,14]
[359529129,1746094247378,-374.259646,0.00042,14]
[359529131,1746094247388,-374.259646,0.00042,14]
[359529133,1746094247398,-157.294617,0.00042,14]
[359529135,1746094247407,-175.663975,0.00042,14]
[359529137,1746094247417,-177.823338,0.00042,14]
[359529139,1746094247426,-175.663975,0.00042,14]
[359529141,1746094247437,-177.823338,0.00042,14]
[359529143,1746094247446,-244.835755,0.00042,14]
[359529145,1746094247456,-1000.0,0.00042,120]
[359529147,1746094247466,-2953.111486,0.00042,14]
[359529149,1746094247475,-2953.111486,0.00042,14]
[359529150,1746094247484,-1043.943458,0.00042,53]
[359529153,1746094247494,-1997.025473,0.00042,14]
[359529154,1746094247504,-1997.025473,0.00042,14]
[359529156,1746094247513,-265.566425,0.00042,14]
[359529158,1746094247523,-265.566425,0.00042,14]
[359529160,1746094247531,-198.713687,0.00042,14]
[359529162,1746094247540,-198.713687,0.00042,14]
[359529164,1746094247550,-540.608215,0.00042,14]
[359529166,1746094247559,-540.608215,0.00042,14]
[359529168,1746094247569,-151.0,0.00042,14]
[359529170,1746094247578,-151.0,0.00042,14]
[359529172,1746094247587,-151.0,0.00042,14]
[359529174,1746094247597,-151.0,0.00042,14]
[359529176,1746094247607,-217.775685,0.00042,14]
[359529178,1746094247617,-156.051641,0.00042,14]
[359529180,1746094247627,-151.0,0.00042,14]
[359529182,1746094247636,-151.0,0.00042,14]
[359529184,1746094247646,-151.0,0.00042,14]
[359529186,1746094247655,-553.064693,0.00042,14]
[359529188,1746094247665,-553.064693,0.00042,14]
[359529190,1746094247675,-151.0,0.00042,14]
[359529192,1746094247685,-192.14249354,0.00042027,2]
[359529194,1746094247696,-150.0,0.00042033,2]
[359529196,1746094247705,-150.0,0.00042041,2]
[359529198,1746094247715,-150.0,0.00042048,2]
[359529200,1746094247725,-150.0,0.00042055,2]
[359529202,1746094247735,-152.0,0.00042078,6]
[359529204,1746094247744,-299.43261,0.00042088,30]
[359529206,1746094247754,-150.0,0.00042108,14]
[359529208,1746094247763,-150.0,0.00042117,2]
[359529210,1746094247772,-150.0,0.00042118,2]
[359529212,1746094247782,-150.0,0.00042138,2]
[359529214,1746094247791,-1182.95,0.00042139,2]
[359529216,1746094247801,-545.0,0.0004215,45]
[359529218,1746094247811,-152.11618671,0.00042154,120]
[359529220,1746094247820,-1000.0,0.00042175,14]
[359529222,1746094247829,-151.0,0.00042192,2]
[359529224,1746094247838,-168.611437,0.000422,60]
[359529226,1746094247848,-150.0,0.00042271,2]
[359529228,1746094247858,-150.0,0.00042278,2]
[359529230,1746094247867,-299.43261,0.00042288,30]
[359529232,1746094247876,-1700.5044515,0.00042312,4]
[359529234,1746094247886,-150.0,0.00042339,2]
[359529236,1746094247895,-150.0,0.00042355,2]
[359529238,1746094247905,-157.6,0.00042362,30]
[359529240,1746094247914,-150.0,0.00042366,14]
[359529242,1746094247924,-800.0,0.0004237,3]
[359529244,1746094247933,-150.0,0.00042391,2]
[359529246,1746094247943,-150.0,0.00042394,2]
[359529248,1746094247952,-150.0,0.00042396,2]
[359529250,1746094247961,-6277.57,0.000424,14]
[359529252,1746094247971,-281.517034,0.00042402,14]
[359529254,1746094247980,-281.517034,0.00042402,14]
[359529256,1746094247989,-151.0,0.00042402,14]
[359529258,1746094247999,-151.0,0.00042402,14]
[359529260,1746094248008,-455.93,0.00042402,30]
[359529262,1746094248017,-455.93,0.00042402,30]
[359529264,1746094248026,-801.26,0.00042402,30]
[359529266,1746094248036,-455.93,0.00042402,30]
[359529268,1746094248046,-801.26,0.00042402,30]
[359529270,1746094248055,-455.93,0.00042402,30]
[359529272,1746094248064,-801.26,0.00042402,30]
[359529274,1746094248073,-455.93,0.00042402,30]
[359529276,1746094248082,-801.26,0.00042402,30]
[359529277,1746094248092,-455.93,0.00042402,30]
[359529279,1746094248103,-455.93,0.00042402,30]
[359529281,1746094248113,-801.26,0.00042402,30]
[359529283,1746094248122,-455.93,0.00042402,30]
[359529286,1746094248132,-801.26,0.00042402,30]
[359529288,1746094248142,-801.26,0.00042402,30]
[359529289,1746094248152,-455.93,0.00042402,30]
[359529291,1746094248161,-455.93,0.00042402,30]
[359529293,1746094248171,-455.93,0.00042402,30]
[359529296,1746094248187,-455.93,0.00042402,30]
[359529310,1746094248318,-455.93,0.00042402,30]
[359529312,1746094248328,-1510.17,0.00042402,30]
[359529314,1746094248337,-801.26,0.00042402,30]
[359529316,1746094248347,-801.26,0.00042402,30]
[359529318,1746094248359,-864.34,0.00042402,30]
[359529320,1746094248368,-801.26,0.00042402,30]
[359529322,1746094248377,-455.93,0.00042402,30]
[359529323,1746094248387,-801.26,0.00042402,30]
[359529325,1746094248396,-801.26,0.00042402,30]
[359529328,1746094248407,-455.93,0.00042402,30]
[359529330,1746094248419,-500.18,0.00042402,30]
[359529331,1746094248431,-455.93,0.00042402,30]
[359529334,1746094248441,-455.93,0.00042402,30]
[359529335,1746094248451,-455.93,0.00042402,30]
[359529338,1746094248461,-455.93,0.00042402,30]
[359529340,1746094248472,-455.93,0.00042402,30]
[359529341,1746094248481,-455.93,0.00042402,30]
[359529343,1746094248491,-455.93,0.00042402,30]
[359529345,1746094248500,-150.0,0.00042403,2]
[359529347,1746094248510,-150.0,0.00042408,2]
[359529349,1746094248519,-150.0,0.00042409,2]
[359529351,1746094248529,-150.0,0.00042413,2]
[359529353,1746094248538,-150.0,0.00042452,2]
[359529355,1746094248548,-150.0,0.00042455,2]
[359529357,1746094248558,-150.0,0.00042467,2]
[359529359,1746094248568,-299.43261,0.00042488,30]
[359529361,1746094248577,-1389.929,0.00042499,64]
[359529363,1746094248587,-944.81641743,0.000425,10]
[359529365,1746094248597,-150.0,0.00042507,2]
[359529367,1746094248606,-150.0,0.00042514,2]
[359529369,1746094248616,-170.3147408,0.00042534,120]
[359529371,1746094248626,-159.96530643,0.00042534,120]
[359529373,1746094248635,-150.0,0.00042556,2]
[359529375,1746094248645,-150.0,0.0004259,2]
[359529377,1746094248654,-150.0,0.00042591,2]
[359529379,1746094248663,-150.0,0.000426,2]
[359529381,1746094248673,-150.0,0.00042613,14]
[359529383,1746094248684,-150.0,0.00042635,2]
[359529385,1746094248693,-150.0,0.00042646,2]
[359529387,1746094248703,-150.0,0.00042686,14]
[359529389,1746094248712,-299.43261,0.00042688,30]
[359529391,1746094248722,-160.0,0.000427,69]
[359529393,1746094248731,-150.0,0.00042701,2]
[359529395,1746094248741,-150.0,0.00042705,2]
[359529397,1746094248750,-152.11618671,0.00042724,120]
[359529399,1746094248759,-150.0,0.00042728,30]
[359529401,1746094248768,-258.41065739,0.00042734,2]
[359529403,1746094248777,-151.0,0.0004274,2]
[359529405,1746094248787,-1254.36,0.00042745,5]
[359529407,1746094248796,-451.39,0.00042746,30]
[359529409,1746094248805,-451.39,0.00042746,30]
[359529411,1746094248815,-150.0,0.00042775,2]
[359529413,1746094248825,-500.0,0.00042785,2]
[359529415,1746094248834,-499.4932,0.00042785,2]
[359529417,1746094248844,-150.0,0.00042795,14]
[359529419,1746094248853,-150.0,0.00042825,2]
[359529421,1746094248862,-150.0,0.00042826,2]
[359529423,1746094248871,-150.0,0.00042842,2]
[359529425,1746094248880,-150.0,0.00042846,2]
[359529427,1746094248889,-150.0,0.00042849,2]
[359529429,1746094248899,-150.0,0.00042854,2]
[359529431,1746094248908,-500.0,0.00042855,60]
[359529433,1746094248918,-500.0,0.00042855,60]
[359529435,1746094248927,-150.0,0.00042864,2]
[359529437,1746094248938,-299.43261,0.00042888,30]
[359529439,1746094248948,-150.0,0.00042895,2]
[359529441,1746094248957,-150.0,0.00042928,2]
[359529443,1746094248967,-150.0,0.00042937,2]
[359529445,1746094248976,-150.0,0.00042938,2]
[359529447,1746094248987,-150.0,0.0004294,2]
[359529449,1746094248996,-183.69763913,0.00042951,2]
[359529451,1746094249006,-150.0,0.00042954,2]
[359529453,1746094249016,-350.501,0.00042957,2]
[359529455,1746094249025,-159.39768025,0.00042959,2]
[359529457,1746094249034,-150.0,0.00042963,14]
[359529459,1746094249043,-500.0,0.0004297,3]
[359529461,1746094249053,-700.0,0.0004297,3]
[359529463,1746094249062,-188.82,0.0004298,120]
[359529465,1746094249072,-1340.0,0.00042986,2]
[359529466,1746094249081,-1289.0,0.00042986,2]
[359529469,1746094249090,-797.0,0.00042986,2]
[359529471,1746094249101,-580.0,0.00042986,2]
[359529473,1746094249110,-2070.0,0.00042986,2]
[359529474,1746094249119,-913.0,0.00042986,2]
[359529476,1746094249128,-549.0,0.00042986,2]
[359529477,1746094249137,-1449.0,0.00042986,2]
[359529478,1746094249147,-150.0,0.00042987,2]
[359529479,1746094249157,-150.0,0.00042988,2]
[359529480,1746094249176,-150.0,0.00042988,2]
[359529481,1746094249193,-150.5,0.0004299,120]
[359529482,1746094249212,-1484.570049,0.00042998,2]
[359529483,1746094249232,-2775.0863196,0.00042998,2]
[359529484,1746094249248,-308.216953,0.00042998,14]
[359529487,1746094249266,-308.216953,0.00042998,14]
[359529490,1746094249285,-151.0,0.00042998,14]
[359529493,1746094249304,-151.0,0.00042998,14]
[359529496,1746094249321,-151.0,0.00042998,14]
[359529499,1746094249338,-220.216538,0.00042998,14]
[359529501,1746094249356,-220.216538,0.00042998,14]
[359529503,1746094249370,-151.0,0.00042999,14]
[359529507,1746094249389,-150.0,0.00042999,2]
[359529509,1746094249401,-50000.0,0.00043,33]
[359529512,1746094249418,-889.21,0.00043,120]
[359529514,1746094249432,-1000.0,0.00043,30]
[359529517,1746094249447,-74214.10306564,0.00043,30]
[359529631,1746094250512,-14571.272614,0.00043,30]
[359529633,1746094250524,-520.76989553,0.00043,30]
[359529636,1746094250541,-790.68824116,0.00026072,14]
[359529646,1746094250623,-150.01986085,0.00024407,2]
[359529648,1746094250632,-3648.64008686,0.00026072,14]
[359529650,1746094250644,-530.85043116,0.00026072,14]
[359529652,1746094250655,-4970.17875918,0.00026934,16]
[359529654,1746094250664,-682.3159772,0.00027397,2]
[359529656,1746094250674,-4970.17875918,0.00027797,17]
[359529658,1746094250684,-4970.17875918,0.00028659,19]
[359529660,1746094250693,-4970.17875918,0.00029521,21]
[359529662,1746094250702,-4970.17875918,0.00030383,22]
[359529664,1746094250711,-4970.17875918,0.00031245,24]
[359529666,1746094250721,-4970.17875918,0.00032107,26]
[359529668,1746094250731,-4970.17875918,0.00032969,28]
[359529670,1746094250741,-682.3159772,0.00033309,2]
[359529672,1746094250750,-4970.17875918,0.00033831,29]
[359529674,1746094250759,-374.0,0.000382,2]
[359529676,1746094250769,-48842.91021153,0.00043,30]
[359529679,1746094250784,-746.86101521,0.00034693,31]
[359529681,1746094250799,-440.89071234,0.00034693,31]
[359529719,1746094251259,-4458.82143992,0.0001999,2]
[359529721,1746094251269,-1803.9549744,0.00034693,31]
[359529724,1746094251280,-949.73,0.00034693,31]
[359532781,1746094296363,250.0,0.00017,2]
[359532782,1746094297446,300.0,0.00019,2]
[359532877,1746095111963,496.7092168,0.000154,2]
[359532878,1746095114150,171.75,0.00017203,2]
[359532883,1746095231353,1575.55516762,0.00015,2]
[359532888,1746095297422,400.54757637,0.000135,2]
[359532896,1746095315368,284.74,0.00032877,60]
[359532915,1746095386214,201.17,0.00019313,2]
[359532923,1746095431508,-1765.0,0.0001975,2]
[359532924,1746095431518,-250.0,0.00019835,2]
[359532925,1746095431528,-300.0,0.00019899,2]
[359532926,1746095431539,-1200.0,0.00019899,2]
[359532927,1746095431548,-74.5731877,0.00019899,2]
[359532928,1746095431560,-225.4268123,0.00019899,2]
[359532929,1746095431570,-2731.7568,0.000199,2]
[359532930,1746095431581,-1067.20091919,0.000199,2]
[359532931,1746095431593,-1167.78404628,0.000199,2]
[359532932,1746095431623,-265.01503453,0.000199,2]
[359532933,1746095431632,-159.81071009,0.000199,2]
[359532934,1746095431642,-364.0983617,0.000199,2]
[359532935,1746095431651,-3522.45764371,0.000199,2]
[359532936,1746095431660,-172.2737716,0.000199,2]
[359532937,1746095431670,-8034.9012857,0.000199,2]
[359532938,1746095431680,-904.51,0.0001992,2]
[359532939,1746095431691,-426.62739477,0.00019973,2]
[359532940,1746095431701,-500.0,0.00019973,2]
[359532941,1746095431711,-500.0,0.00019973,2]
[359532942,1746095431721,-176.83485909,0.00019999,2]
[359532943,1746095431732,-500.0,0.00019999,2]
[359532944,1746095431741,-176.25885092,0.00019999,2]
[359532945,1746095431752,-173.59145931,0.00019999,2]
[359532946,1746095431762,-500.0,0.00019999,2]
[359532947,1746095431771,-500.0,0.00019999,2]
[359532948,1746095431781,-247.61652095,0.00019999,2]
[359532949,1746095431790,-443.48146443,0.00019999,2]
[359532951,1746095431799,-500.0,0.00019999,2]
[359532952,1746095431808,-500.0,0.00019999,2]
[359532953,1746095431818,-827.17623363,0.0002,2]
[359532954,1746095431827,-413144.712251,0.0002,2]
[359532955,1746095431839,-962.1341602,0.0002,2]
[359532957,1746095431850,-8424.35768259,0.0002,2]
[359532970,1746095431961,-738.12099459,0.0002,2]
[359533078,1746095437605,-330.27807626,0.0002,2]
[359533079,1746095437617,-355.54083674,0.0002,2]
[359533080,1746095437769,-65593.4011312,0.0002,2]
[359533081,1746095437783,-263397.87965917,0.0002,2]
[359533082,1746095437793,-4138898.71254654,0.0002,2]
[359533083,1746095437805,-58721.30032643,0.0002,2]
[359533226,1746095439736,-1136618.94044427,0.0002,2]
[359533228,1746095439747,-202927.49486213,0.0002,2]
[359533244,1746095439894,-273.9089501,0.0002,2]
[359533253,1746095439968,-1931.49528,0.0002,2]
[359533258,1746095440006,-9192.43820384,0.0002,2]
[359533269,1746095440115,-3787.72407265,0.0002,2]
[359533286,1746095440312,-2635.004524,0.0002,2]
[359533289,1746095440324,-779.30458002,0.0002,2]
[359533291,1746095440336,-917.65074819,0.0002,2]
[359533519,1746095442614,-216.95569402,0.000199,2]
[359533522,1746095442624,-3583.72739962,0.0002,2]
[359533532,1746095442669,-1577.12539583,0.0002,2]
[359533543,1746095442725,-482911.99999996,0.0002,2]
[359533556,1746095442839,-12265.62736249,0.0002,2]
[359533563,1746095442895,-423.06050227,0.0002,2]
[359533824,1746095445498,-469.36459749,0.00019999,2]
[359533825,1746095445507,-483.40539538,0.0002,2]
[359533826,1746095445519,-11012.14194646,0.0002,2]
[359533827,1746095445530,-10237.35,0.0002,2]
[359533828,1746095445543,-17235.8,0.0002,2]
[359533832,1746095445584,-86550.42858483,0.0002,2]
[359533851,1746095445767,-459.78218619,0.0002,2]
[359533853,1746095445779,-558.3430816,0.0002,2]
[359533859,1746095445825,-8668.8,0.0002,2]
[359533861,1746095445837,-2627.51078992,0.0002,2]
[359533867,1746095445881,-9137.14681608,0.0002,2]
[359533874,1746095445937,-261.81012156,0.0002,2]
[359533876,1746095445949,-2781.45180001,0.0002,2]
[359534658,1746095631076,169.05,0.00019178,2]
[359534661,1746095835576,200.0,0.0001923,2]
[359534662,1746095880864,-1200.0,0.00019899,2]
[359534663,1746095880893,-500.0,0.00019899,2]
[359534664,1746095880920,-500.0,0.00019899,2]
[359534665,1746095880944,-800.0,0.000199,2]
[359534666,1746095900960,-1568.029022,0.00019799,2]
[359534667,1746095900982,-1999.970978,0.000199,2]
[359534668,1746095924630,-1111.943,0.000196,2]
[359534669,1746095924651,-169.4,0.000196,2]
[359534670,1746095924673,-1999.657,0.000199,2]
[359534671,1746095932411,-2000.0,0.000199,2]
[359534672,1746095940600,-2000.0,0.000199,2]
[359534673,1746095953246,-300.0,0.00019899,2]
[359534674,1746095953268,-2000.0,0.000199,2]
[359534675,1746095959373,-2000.0,0.000199,2]
[359534676,1746095960822,892.92,0.00018742,2]
[359534677,1746095966064,-2000.0,0.000199,2]
[359534678,1746095972955,-2000.0,0.000199,2]
[359534679,1746095979423,-2000.0,0.000199,2]
[359534680,1746095984714,-2000.0,0.000199,2]
[359534681,1746095989850,-2000.0,0.000199,2]
[359534682,1746095995262,-2000.0,0.000199,2]
[359534683,1746096001314,-2000.0,0.000199,2]
[359534684,1746096006823,-391.0,0.00019899,2]
[359534685,1746096006846,-1609.0,0.000199,2]
[359534686,1746096013125,-2000.0,0.00019899,2]
[359534687,1746096018280,-2000.0,0.00019899,2]
[359534688,1746096067943,-241.87679836,0.00019888,2]
[359534689,1746096067964,-0.12320164,0.00019897,2]
[359534690,1746096074762,-299.87679836,0.00019897,2]
[359534691,1746096074786,-0.12320164,0.00019898,2]
[359534692,1746096080877,-173.20836303,0.00019898,2]
[359534693,1746096080900,-500.0,0.00019898,2]
[359534694,1746096080925,-500.0,0.00019898,2]
[359534695,1746096080948,-500.0,0.00019898,2]
[359534696,1746096080971,-326.79163697,0.00019898,2]
[359534697,1746096088536,-233.64538813,0.00019898,2]
[359534698,1746096088566,-1766.35461187,0.00019898,2]
[359534699,1746096094942,-1568.029022,0.00019798,2]
[359534700,1746096094967,-431.970978,0.00019898,2]
[359534701,1746096101192,-2000.0,0.00019898,2]
[359534702,1746096106507,-2000.0,0.00019898,2]
[359534703,1746096111698,250.0,0.00017,2]
[359534704,1746096112069,-1929.06942916,0.00019898,2]
[359534705,1746096112099,-70.93057084,0.00019898,2]
[359534706,1746096112795,300.0,0.00019,2]
[359534707,1746096160308,-173.33156467,0.00019897,2]
[359534708,1746096160331,-500.0,0.00019897,2]
[359534709,1746096160353,-400.0,0.00019897,2]
[359534710,1746096160377,-926.66843533,0.00019897,2]
[359534711,1746096169163,-2000.0,0.00019897,2]
[359534712,1746096174865,-1568.029022,0.00019797,2]
[359534713,1746096174897,-431.970978,0.00019897,2]
[359534714,1746096180782,-1071.42784714,0.00019897,2]
[359534715,1746096180807,-928.57215286,0.00019897,2]
[359534716,1746096207806,-2000.0,0.00019897,2]
[359534717,1746096213357,-1501.49510761,0.00019897,2]
[359534718,1746096213385,-498.50489239,0.00019897,2]
[359534719,1746096219060,-2000.0,0.00019897,2]
[359534720,1746096237921,-1931.56236808,0.00019897,2]
[359534721,1746096237948,-68.43763192,0.00019897,2]
[359534735,1746096631682,-457.75,0.00019435,2]
[359534736,1746096631695,-357.36689531,0.00019435,2]
[359534737,1746096631735,-419.91705816,0.00019435,2]
[359534738,1746096631790,-332.99506853,0.00019435,2]
[359534739,1746096631800,-4.45916691,0.00019484,2]
[359534753,1746096637739,-195.54083309,0.00019484,2]
[359534754,1746096637749,-250.0,0.00019484,2]
[359534755,1746096637758,-200.0,0.00019519,2]
[359534756,1746096637768,-250.0,0.00019519,2]
[359534757,1746096637777,-339.98,0.00019533,2]
[359534758,1746096637786,-500.0,0.00019533,2]
[359534759,1746096637796,-339.98,0.00019538,2]
[359534760,1746096637805,-339.98,0.00019543,2]
[359534761,1746096637814,-37.68736487,0.00019548,2]
[359534762,1746096637826,-302.29263513,0.00019548,2]
[359534763,1746096637835,-339.98,0.00019553,2]
[359534764,1746096637844,-339.98,0.00019558,2]
[359534765,1746096637853,-339.98,0.00019563,2]
[359534766,1746096637862,-339.98,0.00019569,2]
[359534767,1746096637871,-339.98,0.00019574,2]
[359534768,1746096637880,-339.98,0.00019579,2]
[359534769,1746096637890,-339.98,0.00019584,2]
[359534770,1746096637899,-303.41683326,0.00019589,2]
[359534771,1746096637910,-36.56316674,0.00019589,2]
[359534772,1746096637919,-339.98,0.00019594,2]
[359534773,1746096637929,-339.98,0.000196,2]
[359534774,1746096637938,-300.0,0.00019603,2]
[359534775,1746096637947,-1200.0,0.00019604,2]
[359534776,1746096637956,-339.98,0.00019605,2]
[359534777,1746096637965,-339.98,0.0001961,2]
[359534778,1746096637974,-339.98,0.00019615,2]
[359534779,1746096637983,-339.98,0.0001962,2]
[359534780,1746096637992,-339.98,0.00019625,2]
[359534781,1746096638001,-339.98,0.0001963,2]
[359534783,1746096638011,-15486.69788538,0.00019671,2]
[359534789,1746096638057,-433.92335355,0.00019671,2]
[359534791,1746096638068,-7979.37876107,0.00019671,2]
[359534793,1746096638077,-1112.69348201,0.00019756,2]
[359534795,1746096638086,-1000.0,0.00019795,2]
[359534797,1746096638095,-2500.0,0.00019796,2]
[359534799,1746096638105,-278.22,0.00019845,2]
[359534800,1746096638114,-500.0,0.00019856,2]
[359534802,1746096638123,-173.33156467,0.00019856,2]
[359534804,1746096638132,-560.4370251,0.00019856,2]
[359534806,1746096638142,-500.0,0.00019856,2]
[359534808,1746096638152,-500.0,0.00019856,2]
[359534810,1746096638161,-500.0,0.00019856,2]
[359534812,1746096638171,-500.0,0.00019856,2]
[359534814,1746096638180,-500.0,0.00019856,2]
[359534817,1746096638189,-500.0,0.00019856,2]
[359534819,1746096638200,-500.0,0.00019856,2]
[359534821,1746096638208,-500.0,0.00019856,2]
[359534823,1746096638218,-500.0,0.00019856,2]
[359534825,1746096638228,-500.0,0.00019856,2]
[359534827,1746096638237,-500.0,0.00019856,2]
[359534829,1746096638246,-500.0,0.00019856,2]
[359534831,1746096638255,-500.0,0.00019856,2]
[359534833,1746096638265,-500.0,0.00019856,2]
[359534835,1746096638274,-500.0,0.00019856,2]
[359534837,1746096638283,-500.0,0.00019856,2]
[359534839,1746096638292,-500.0,0.00019856,2]
[359534841,1746096638301,-500.0,0.00019856,2]
[359534843,1746096638310,-500.0,0.00019856,2]
[359534845,1746096638319,-500.0,0.00019856,2]
[359534847,1746096638328,-500.0,0.00019856,2]
[359534849,1746096638336,-500.0,0.00019856,2]
[359534851,1746096638346,-500.0,0.00019856,2]
[359534853,1746096638355,-500.0,0.00019856,2]
[359534854,1746096638364,-500.0,0.00019856,2]
[359534856,1746096638373,-500.0,0.00019856,2]
[359534858,1746096638382,-500.0,0.00019856,2]
[359534860,1746096638392,-500.0,0.00019856,2]
[359534862,1746096638402,-500.0,0.00019856,2]
[359534864,1746096638411,-22960.47,0.00019858,2]
[359534866,1746096638420,-3266.36,0.00019862,2]
[359534868,1746096638430,-63598.959222,0.000199,2]